[Event "44th Chess Olympiad Women 2022"]
[Site "Chennai"]
[Date "2022.08.07"]
[Round "9.66"]
[White "Aponte, Samantha"]
[Black "dos Santos, Elfiana"]
[Result "1-0"]
[WhiteElo "1087"]
[BlackElo "1560"]
[Annotator "NA RC"]
[PlyCount "81"]
[EventDate "2022.??.??"]
[TimeControl "60"]

1. e4 {[%emt 0:00:02]} e5 {[%emt 0:00:06]} 2. Nf3 {[%emt 0:00:08]} Nc6 {
[%emt 0:00:12]} 3. Bc4 {[%emt 0:00:15]} h6 {[%emt 0:00:49]} 4. d3 {[%emt 0:00:
00]} Bc5 {[%emt 0:00:43]} 5. O-O {[%emt 0:01:57]} Nf6 {[%emt 0:00:05]} 6. h3 {
[%emt 0:01:59]} O-O {[%emt 0:00:13]} 7. Re1 {[%emt 0:00:38]} d6 {[%emt 0:00:29]
} 8. c3 {[%emt 0:00:23]} Na5 {[%emt 0:01:20]} 9. Bb3 {[%emt 0:06:50]} Nxb3 {
[%emt 0:00:16]} 10. Qxb3 {[%emt 0:01:10]} Bb6 {[%emt 0:04:33]} 11. Nbd2 {
[%emt 0:05:08]} Be6 {[%emt 0:04:17]} 12. Qd1 {[%emt 0:01:14]} a6 {[%emt 0:00:
00]} 13. Nf1 {[%emt 0:02:44]} a5 {[%emt 0:04:07]} 14. Ng3 {[%emt 0:00:33]} Qe7
{[%emt 0:04:02]} 15. Nh4 {[%emt 0:08:40]} Nh7 {[%emt 0:05:37]} 16. Nhf5 {
[%emt 0:09:00]} Qf6 {[%emt 0:00:18]} 17. Nh5 {[%emt 0:03:55]} Qd8 {[%emt 0:00:
00]} 18. Qg4 {[%emt 0:12:54]} g5 {[%emt 0:07:55]} 19. Nxh6+ {[%emt 0:15:31]}
Kh8 {[%emt 0:00:34]} 20. Qf3 {[%emt 0:04:23]} f6 {[%emt 0:07:13]} 21. Be3 {
[%emt 0:04:29]} Bxe3 {[%emt 0:00:38]} 22. fxe3 {[%emt 0:01:01]} Qe8 {[%emt 0:
00:00]} 23. g4 {[%emt 0:05:51]} Qg6 {[%emt 0:00:45]} 24. Nf5 {[%emt 0:01:16]}
Bxf5 {[%emt 0:00:33]} 25. exf5 {[%emt 0:00:50]} Qe8 {[%emt 0:00:22]} 26. Qxb7 {
[%emt 0:05:53]} Qd7 {[%emt 0:01:19]} 27. Qf3 {[%emt 0:01:19]} Qb5 {[%emt 0:00:
00]} 28. Qe2 {[%emt 0:01:02]} Rab8 {[%emt 0:00:19]} 29. Rab1 {[%emt 0:00:54]}
a4 {[%emt 0:00:20]} 30. c4 {[%emt 0:01:03]} Qc6 {[%emt 0:02:25]} 31. Rbd1 {
[%emt 0:01:28]} Rbd8 {[%emt 0:00:56]} 32. b3 {[%emt 0:00:54]} axb3 {[%emt 0:00:
00]} 33. axb3 {[%emt 0:00:02]} Rb8 {[%emt 0:00:37]} 34. Rb1 {[%emt 0:00:29]}
Rb7 {[%emt 0:00:32]} 35. d4 {[%emt 0:01:07]} exd4 {[%emt 0:00:59]} 36. exd4 {
[%emt 0:00:11]} Re8 {[%emt 0:00:38]} 37. Qxe8+ {[%emt 0:00:26]} Qxe8 {[%emt 0:
00:00]} 38. Rxe8+ {[%emt 0:00:09]} Nf8 {[%emt 0:00:17]} 39. Rxf8+ {[%emt 0:00:
00]} Kh7 {[%emt 0:00:01]} 40. Re1 {[%emt 0:00:39]} c6 {[%emt 0:00:24]} 41. Ree8
{[%emt 0:31:21]} 1-0

[Event "44th Chess Olympiad Women 2022"]
[Site "Chennai"]
[Date "2022.08.07"]
[Round "9.66"]
[White "Gusmao, Maria do Ceu"]
[Black "Sagastegui, Thamara"]
[Result "0-1"]
[WhiteElo "1442"]
[BlackElo "1362"]
[Annotator "NA"]
[PlyCount "97"]
[EventDate "2022.??.??"]
[TimeControl "60"]

1. c4 {[%emt 0:00:02]} e5 {[%emt 0:00:03]} 2. Nc3 {[%emt 0:00:14]} Nf6 {
[%emt 0:00:20]} 3. a3 {[%emt 0:00:32]} a5 {[%emt 0:02:40]} 4. g3 {[%emt 0:00:
00]} Bc5 {[%emt 0:01:33]} 5. Bg2 {[%emt 0:01:35]} d6 {[%emt 0:01:56]} 6. h3 {
[%emt 0:03:21]} Nc6 {[%emt 0:07:14]} 7. Nf3 {[%emt 0:01:22]} Bd7 {[%emt 0:00:
00]} 8. e3 {[%emt 0:04:46]} h6 {[%emt 0:14:12]} 9. O-O {[%emt 0:04:26]} Qc8 {
[%emt 0:01:29]} 10. Nb5 {[%emt 0:20:41]} Bb6 {[%emt 0:05:24]} 11. d4 {[%emt 0:
00:00]} e4 {[%emt 0:14:35]} 12. Nh2 {[%emt 0:11:09]} O-O {[%emt 0:06:38]} 13.
g4 {[%emt 0:08:43]} Re8 {[%emt 0:07:41]} 14. f3 {[%emt 0:04:50]} exf3 {[%emt 0:
00:00]} 15. Bxf3 {[%emt 0:02:16]} Ne7 {[%emt 0:01:29]} 16. Nc3 {[%emt 0:00:43]}
Ng6 {[%emt 0:00:30]} 17. Nd5 {[%emt 0:03:43]} Nxd5 {[%emt 0:01:40]} 18. Bxd5 {
[%emt 0:00:44]} Be6 {[%emt 0:00:12]} 19. Rf2 {[%emt 0:05:31]} Bxd5 {[%emt 0:00:
00]} 20. cxd5 {[%emt 0:00:32]} Qd7 {[%emt 0:00:33]} 21. Kh1 {[%emt 0:02:51]}
Qe7 {[%emt 0:04:23]} 22. Rg2 {[%emt 0:05:01]} Nh4 {[%emt 0:00:00]} 23. Rg3 {
[%emt 0:00:23]} Qe4+ {[%emt 0:00:00]} 24. Nf3 {[%emt 0:02:22]} Qxd5 {[%emt 0:
00:00]} 25. Kh2 {[%emt 0:01:06]} Nxf3+ {[%emt 0:00:00]} 26. Rxf3 {[%emt 0:00:
00]} Re6 {[%emt 0:00:00]} 27. Qf1 {[%emt 0:00:41]} Re7 {[%emt 0:00:00]} 28. Qf2
{[%emt 0:06:31]} Qb5 {[%emt 0:00:00]} 29. Kg3 {[%emt 0:01:33]} d5 {[%emt 0:00:
00]} 30. Rb1 {[%emt 0:01:30]} Qd7 {[%emt 0:00:30]} 31. Bd2 {[%emt 0:00:14]}
Ree8 {[%emt 0:00:33]} 32. Rf1 {[%emt 0:00:55]} Qd6+ {[%emt 0:00:22]} 33. Kg2 {
[%emt 0:00:19]} f6 {[%emt 0:00:38]} 34. b4 {[%emt 0:00:39]} Qd7 {[%emt 0:00:30]
} 35. Kg1 {[%emt 0:00:25]} Re4 {[%emt 0:00:25]} 36. Bc3 {[%emt 0:01:23]} axb4 {
[%emt 0:00:27]} 37. Bxb4 {[%emt 0:00:34]} Ba5 {[%emt 0:00:09]} 38. Bxa5 {
[%emt 0:01:27]} Rxa5 {[%emt 0:00:03]} 39. Qa2 {[%emt 0:00:35]} Qe7 {[%emt 0:00:
00]} 40. Rf5 {[%emt 0:00:50]} c6 {[%emt 0:00:06]} 41. R5f3 {[%emt 0:30:37]}
Rxe3 {[%emt 0:30:24]} 42. Rxe3 {[%emt 0:00:30]} Qxe3+ {[%emt 0:00:05]} 43. Rf2
{[%emt 0:00:54]} Rxa3 {[%emt 0:00:25]} 44. Qe2 {[%emt 0:00:11]} Qxe2 {[%emt 0:
00:00]} 45. Rxe2 {[%emt 0:00:10]} Rxh3 {[%emt 0:00:21]} 46. Kg2 {[%emt 0:00:51]
} Rd3 {[%emt 0:00:10]} 47. Re7 {[%emt 0:00:09]} Rxd4 {[%emt 0:00:15]} 48. Rxb7
{[%emt 0:00:30]} Rxg4+ {[%emt 0:00:03]} 49. Kf3 {[%emt 0:00:00]} 0-1

[Event "44th Chess Olympiad Women 2022"]
[Site "Chennai"]
[Date "2022.08.07"]
[Round "9.66"]
[White "Jacobs, Annelaine"]
[Black "da Silva, Sonizia A.Tilman"]
[Result "1-0"]
[WhiteElo "1612"]
[BlackElo "1507"]
[Annotator "NA"]
[PlyCount "83"]
[EventDate "2022.??.??"]
[TimeControl "60"]

1. e4 {[%emt 0:00:05]} Nc6 {[%emt 0:01:06]} 2. d4 {[%emt 0:00:56]} d6 {[%emt 0:
00:00]} 3. Bb5 {[%emt 0:01:20]} Bd7 {[%emt 0:00:00]} 4. Nc3 {[%emt 0:01:53]}
Nf6 {[%emt 0:00:53]} 5. Nf3 {[%emt 0:02:00]} a6 {[%emt 0:01:27]} 6. Bxc6 {
[%emt 0:12:51]} Bxc6 {[%emt 0:00:51]} 7. d5 {[%emt 0:00:25]} Bd7 {[%emt 0:00:
00]} 8. O-O {[%emt 0:01:41]} c6 {[%emt 0:00:36]} 9. Re1 {[%emt 0:02:36]} cxd5 {
[%emt 0:01:58]} 10. exd5 {[%emt 0:04:06]} g6 {[%emt 0:03:42]} 11. Ne4 {[%emt 0:
00:00]} Bg7 {[%emt 0:02:31]} 12. Nxd6+ {[%emt 0:00:19]} Kf8 {[%emt 0:01:28]}
13. Ne4 {[%emt 0:25:50]} Bg4 {[%emt 0:02:35]} 14. Nxf6 {[%emt 0:01:31]} Bxf6 {
[%emt 0:00:57]} 15. Bh6+ {[%emt 0:03:10]} Bg7 {[%emt 0:00:44]} 16. Bxg7+ {
[%emt 0:00:10]} Kxg7 {[%emt 0:01:07]} 17. Qd4+ {[%emt 0:02:15]} f6 {[%emt 0:00:
00]} 18. Qxg4 {[%emt 0:00:09]} Qxd5 {[%emt 0:01:34]} 19. Rxe7+ {[%emt 0:00:39]}
Kf8 {[%emt 0:02:28]} 20. Qe6 {[%emt 0:01:17]} Qxe6 {[%emt 0:01:20]} 21. Rxe6 {
[%emt 0:00:05]} Kf7 {[%emt 0:00:27]} 22. Rae1 {[%emt 0:00:48]} Rhd8 {[%emt 0:
00:00]} 23. Re7+ {[%emt 0:00:30]} Kg8 {[%emt 0:00:34]} 24. Rxb7 {[%emt 0:03:43]
} Rac8 {[%emt 0:02:24]} 25. c3 {[%emt 0:00:52]} Rc5 {[%emt 0:08:15]} 26. Rbe7 {
[%emt 0:04:33]} Rcd5 {[%emt 0:02:25]} 27. Re8+ {[%emt 0:02:33]} Rxe8 {[%emt 0:
00:00]} 28. Rxe8+ {[%emt 0:00:03]} Kf7 {[%emt 0:00:16]} 29. Re1 {[%emt 0:00:10]
} h5 {[%emt 0:00:31]} 30. Nd4 {[%emt 0:03:58]} a5 {[%emt 0:05:46]} 31. g3 {
[%emt 0:00:21]} g5 {[%emt 0:00:58]} 32. Kg2 {[%emt 0:05:38]} a4 {[%emt 0:06:21]
} 33. b4 {[%emt 0:03:08]} axb3 {[%emt 0:00:57]} 34. axb3 {[%emt 0:00:08]} g4 {
[%emt 0:10:02]} 35. b4 {[%emt 0:01:25]} Re5 {[%emt 0:02:42]} 36. Rxe5 {[%emt 0:
00:00]} fxe5 {[%emt 0:00:04]} 37. Nc6 {[%emt 0:00:30]} Ke6 {[%emt 0:00:36]} 38.
c4 {[%emt 0:01:48]} Kd6 {[%emt 0:00:25]} 39. b5 {[%emt 0:00:22]} e4 {[%emt 0:
00:00]} 40. Na7 {[%emt 0:02:49]} Kc5 {[%emt 0:01:32]} 41. Nc8 {[%emt 0:30:07]}
Kxc4 {[%emt 0:39:53]} 42. b6 {[%emt 0:00:07]} 1-0

[Event "44th Chess Olympiad Women 2022"]
[Site "Chennai"]
[Date "2022.08.07"]
[Round "9.67"]
[White "James, Shemilah"]
[Black "Johnson, Daijah"]
[Result "1-0"]
[WhiteElo "1590"]
[BlackElo "1480"]
[Annotator "NA RC"]
[PlyCount "65"]
[EventDate "2022.??.??"]
[TimeControl "60"]

1. e4 {[%emt 0:00:05]} c5 {[%emt 0:00:10]} 2. Nc3 {[%emt 0:00:15]} e6 {[%emt 0:
00:00]} 3. g3 {[%emt 0:00:31]} Nc6 {[%emt 0:00:35]} 4. Bg2 {[%emt 0:00:26]} Nf6
{[%emt 0:01:08]} 5. d3 {[%emt 0:01:25]} d5 {[%emt 0:01:50]} 6. Nge2 {[%emt 0:
00:00]} d4 {[%emt 0:02:23]} 7. Nb1 {[%emt 0:02:10]} e5 {[%emt 0:01:23]} 8. Nd2
{[%emt 0:03:47]} Be7 {[%emt 0:03:01]} 9. O-O {[%emt 0:03:16]} O-O {[%emt 0:00:
00]} 10. a4 {[%emt 0:07:50]} Be6 {[%emt 0:01:35]} 11. h3 {[%emt 0:02:47]} Qd7 {
[%emt 0:05:17]} 12. Kh2 {[%emt 0:05:01]} h6 {[%emt 0:04:19]} 13. f4 {[%emt 0:
00:00]} Qc7 {[%emt 0:07:33]} 14. f5 {[%emt 0:06:58]} Bd7 {[%emt 0:00:15]} 15.
Nf3 {[%emt 0:04:14]} Kh7 {[%emt 0:03:47]} 16. Qd2 {[%emt 0:07:15]} Ng8 {
[%emt 0:02:23]} 17. h4 {[%emt 0:06:33]} g6 {[%emt 0:08:02]} 18. Nfg1 {[%emt 0:
00:00]} g5 {[%emt 0:03:16]} 19. Bh3 {[%emt 0:04:07]} f6 {[%emt 0:03:41]} 20.
Nf3 {[%emt 0:03:18]} Na5 {[%emt 0:03:14]} 21. b3 {[%emt 0:02:09]} b6 {[%emt 0:
00:00]} 22. Kg2 {[%emt 0:03:42]} Bd6 {[%emt 0:03:45]} 23. Bg4 {[%emt 0:01:36]}
Be8 {[%emt 0:01:23]} 24. hxg5 {[%emt 0:00:46]} hxg5 {[%emt 0:00:22]} 25. Rh1+ {
[%emt 0:00:45]} Nh6 {[%emt 0:00:18]} 26. Nxg5+ {[%emt 0:01:39]} fxg5 {[%emt 0:
00:00]} 27. Qxg5 {[%emt 0:00:11]} Qg7 {[%emt 0:02:02]} 28. Rxh6+ {[%emt 0:00:
00]} Kg8 {[%emt 0:00:46]} 29. Rxd6 {[%emt 0:01:23]} Qxg5 {[%emt 0:00:48]} 30.
Bxg5 {[%emt 0:00:17]} Nb7 {[%emt 0:00:45]} 31. Rh6 {[%emt 0:01:07]} Nd8 {
[%emt 0:00:43]} 32. Rah1 {[%emt 0:00:34]} Kg7 {[%emt 0:05:50]} 33. Rh7+ {
[%emt 0:00:22]} 1-0

[Event "44th Chess Olympiad Women 2022"]
[Site "Chennai"]
[Date "2022.08.07"]
[Round "9.67"]
[White "Pinder, Trinity"]
[Black "La Fleur, Zara"]
[Result "0-1"]
[WhiteElo "1183"]
[BlackElo "1513"]
[Annotator "NA RC"]
[PlyCount "87"]
[EventDate "2022.??.??"]
[TimeControl "60"]

1. d4 {[%emt 0:00:03]} d5 {[%emt 0:00:10]} 2. c4 {[%emt 0:00:10]} c6 {[%emt 0:
00:00]} 3. e3 {[%emt 0:00:59]} Nf6 {[%emt 0:00:41]} 4. Nf3 {[%emt 0:00:16]} Bf5
{[%emt 0:02:42]} 5. Bd3 {[%emt 0:01:50]} Bxd3 {[%emt 0:00:47]} 6. Qxd3 {
[%emt 0:00:55]} e6 {[%emt 0:01:51]} 7. O-O {[%emt 0:01:03]} Be7 {[%emt 0:01:23]
} 8. Nc3 {[%emt 0:00:46]} Nbd7 {[%emt 0:01:24]} 9. cxd5 {[%emt 0:01:34]} cxd5 {
[%emt 0:02:57]} 10. Re1 {[%emt 0:02:35]} O-O {[%emt 0:00:33]} 11. e4 {[%emt 0:
00:00]} dxe4 {[%emt 0:02:55]} 12. Nxe4 {[%emt 0:00:31]} Rc8 {[%emt 0:03:02]}
13. Bg5 {[%emt 0:00:48]} Nd5 {[%emt 0:05:07]} 14. Bxe7 {[%emt 0:03:12]} Qxe7 {
[%emt 0:00:25]} 15. a3 {[%emt 0:03:30]} Rc6 {[%emt 0:03:13]} 16. Ne5 {[%emt 0:
00:00]} Rc7 {[%emt 0:14:22]} 17. Nc3 {[%emt 0:06:21]} Nxc3 {[%emt 0:00:53]} 18.
Nxd7 {[%emt 0:01:35]} Qxd7 {[%emt 0:00:54]} 19. bxc3 {[%emt 0:00:32]} Rfc8 {
[%emt 0:01:08]} 20. Rec1 {[%emt 0:02:32]} e5 {[%emt 0:13:20]} 21. d5 {[%emt 0:
00:00]} Rc5 {[%emt 0:04:25]} 22. c4 {[%emt 0:02:21]} b5 {[%emt 0:02:37]} 23.
Qe3 {[%emt 0:01:43]} bxc4 {[%emt 0:01:48]} 24. Qxe5 {[%emt 0:01:55]} Rxd5 {
[%emt 0:00:34]} 25. Qe2 {[%emt 0:02:11]} Rd2 {[%emt 0:03:27]} 26. Rd1 {[%emt 0:
00:00]} Rxe2 {[%emt 0:07:18]} 27. Rxd7 {[%emt 0:00:12]} c3 {[%emt 0:01:43]} 28.
Rc1 {[%emt 0:00:26]} Rb2 {[%emt 0:01:39]} 29. g3 {[%emt 0:01:20]} c2 {[%emt 0:
00:00]} 30. Kg2 {[%emt 0:00:39]} Kf8 {[%emt 0:02:01]} 31. Rd2 {[%emt 0:00:47]}
a5 {[%emt 0:06:08]} 32. a4 {[%emt 0:01:49]} Rc6 {[%emt 0:04:42]} 33. Kf3 {
[%emt 0:02:34]} Rc4 {[%emt 0:04:59]} 34. Ke2 {[%emt 0:01:13]} Rxa4 {[%emt 0:00:
00]} 35. Rcxc2 {[%emt 0:02:33]} Rxc2 {[%emt 0:00:28]} 36. Rxc2 {[%emt 0:00:22]}
Ke7 {[%emt 0:01:59]} 37. Rc6 {[%emt 0:01:15]} Ra1 {[%emt 0:00:28]} 38. Ra6 {
[%emt 0:00:31]} a4 {[%emt 0:00:25]} 39. Kf3 {[%emt 0:01:12]} a3 {[%emt 0:01:24]
} 40. Ke3 {[%emt 0:04:42]} a2 {[%emt 0:00:25]} 41. Kf4 {[%emt 0:32:51]} Rh1 {
[%emt 0:05:58]} 42. Rxa2 {[%emt 0:00:00]} Rxh2 {[%emt 0:00:10]} 43. f3 {
[%emt 0:00:00]} Rxa2 {[%emt 0:00:16]} 44. Ke5 {[%emt 0:00:48]} 0-1

[Event "44th Chess Olympiad Women 2022"]
[Site "Chennai"]
[Date "2022.08.07"]
[Round "9.68"]
[White "Alazmi, Aeshah"]
[Black "Saraci, Nita"]
[Result "1/2-1/2"]
[WhiteElo "1256"]
[BlackElo "1555"]
[Annotator "NA"]
[PlyCount "117"]
[EventDate "2022.??.??"]
[TimeControl "60"]

1. e4 {[%emt 0:00:01]} b6 {[%emt 0:00:19]} 2. d4 {[%emt 0:00:11]} Bb7 {[%emt 0:
00:00]} 3. Bd3 {[%emt 0:00:11]} e6 {[%emt 0:00:12]} 4. Qe2 {[%emt 0:00:14]} Nf6
{[%emt 0:01:06]} 5. Nf3 {[%emt 0:00:19]} d6 {[%emt 0:03:22]} 6. c4 {[%emt 0:00:
00]} Nbd7 {[%emt 0:00:53]} 7. Nc3 {[%emt 0:00:28]} g6 {[%emt 0:04:17]} 8. a3 {
[%emt 0:01:17]} Bg7 {[%emt 0:03:13]} 9. O-O {[%emt 0:00:26]} c5 {[%emt 0:03:07]
} 10. d5 {[%emt 0:04:25]} O-O {[%emt 0:02:04]} 11. Re1 {[%emt 0:05:24]} Re8 {
[%emt 0:02:10]} 12. Qd1 {[%emt 0:00:33]} a6 {[%emt 0:06:43]} 13. Rb1 {[%emt 0:
00:00]} Qc7 {[%emt 0:05:45]} 14. a4 {[%emt 0:08:15]} Ng4 {[%emt 0:02:20]} 15.
Bf4 {[%emt 0:03:41]} Nge5 {[%emt 0:17:34]} 16. Be2 {[%emt 0:02:30]} Nxf3+ {
[%emt 0:05:58]} 17. Bxf3 {[%emt 0:00:16]} e5 {[%emt 0:00:09]} 18. Be3 {[%emt 0:
00:00]} Nf6 {[%emt 0:00:31]} 19. Qd2 {[%emt 0:00:33]} Qd7 {[%emt 0:00:27]} 20.
b3 {[%emt 0:02:58]} Bc8 {[%emt 0:01:07]} 21. h3 {[%emt 0:01:29]} Qc7 {[%emt 0:
00:00]} 22. Bh6 {[%emt 0:02:50]} Bd7 {[%emt 0:02:06]} 23. Bxg7 {[%emt 0:01:49]}
Kxg7 {[%emt 0:00:12]} 24. g4 {[%emt 0:00:39]} Ng8 {[%emt 0:01:46]} 25. Bg2 {
[%emt 0:01:37]} Rf8 {[%emt 0:00:37]} 26. Rf1 {[%emt 0:00:15]} f6 {[%emt 0:00:
00]} 27. g5 {[%emt 0:02:05]} fxg5 {[%emt 0:03:14]} 28. Qxg5 {[%emt 0:00:12]}
Rf4 {[%emt 0:01:04]} 29. Ne2 {[%emt 0:01:37]} Rf6 {[%emt 0:00:41]} 30. f3 {
[%emt 0:00:20]} Raf8 {[%emt 0:00:55]} 31. h4 {[%emt 0:01:04]} Qc8 {[%emt 0:00:
00]} 32. Kh2 {[%emt 0:01:17]} b5 {[%emt 0:01:35]} 33. f4 {[%emt 0:01:13]} exf4
{[%emt 0:11:12]} 34. Rxf4 {[%emt 0:00:29]} Rxf4 {[%emt 0:00:35]} 35. Nxf4 {
[%emt 0:00:14]} Nf6 {[%emt 0:12:01]} 36. Kg1 {[%emt 0:02:43]} Kh8 {[%emt 0:00:
00]} 37. h5 {[%emt 0:01:41]} Nxh5 {[%emt 0:03:15]} 38. Nxh5 {[%emt 0:00:09]}
gxh5 {[%emt 0:00:16]} 39. Qxh5 {[%emt 0:00:06]} bxc4 {[%emt 0:00:18]} 40. bxc4
{[%emt 0:00:28]} Bxa4 {[%emt 0:00:11]} 41. Rb6 {[%emt 0:32:39]} Rd8 {[%emt 0:
00:00]} 42. e5 {[%emt 0:00:42]} dxe5 {[%emt 0:01:09]} 43. Qxe5+ {[%emt 0:00:11]
} Kg8 {[%emt 0:00:25]} 44. d6 {[%emt 0:00:21]} Qg4 {[%emt 0:00:00]} 45. Qd5+ {
[%emt 0:00:00]} Kf8 {[%emt 0:00:00]} 46. Rxa6 {[%emt 0:00:00]} Bd7 {[%emt 0:00:
00]} 47. Ra8 {[%emt 0:00:00]} Rxa8 {[%emt 0:00:38]} 48. Qxa8+ {[%emt 0:00:00]}
Kg7 {[%emt 0:00:50]} 49. Qd5 {[%emt 0:00:00]} Qd4+ {[%emt 0:00:29]} 50. Qxd4+ {
[%emt 0:00:00]} cxd4 {[%emt 0:00:04]} 51. Kf2 {[%emt 0:00:00]} Kf6 {[%emt 0:00:
00]} 52. Ke2 {[%emt 0:00:00]} Ke5 {[%emt 0:00:25]} 53. c5 {[%emt 0:00:00]} h6 {
[%emt 0:00:53]} 54. Kd2 {[%emt 0:00:00]} h5 {[%emt 0:00:34]} 55. c6 {[%emt 0:
00:00]} Bxc6 {[%emt 0:00:21]} 56. Bxc6 {[%emt 0:00:00]} Kxd6 {[%emt 0:00:07]}
57. Bf3 {[%emt 0:00:00]} h4 {[%emt 0:00:12]} 58. Kd3 {[%emt 0:00:00]} Ke5 {
[%emt 0:00:04]} 59. Bg2 {[%emt 0:00:00]} 1/2-1/2

[Event "44th Chess Olympiad Women 2022"]
[Site "Chennai"]
[Date "2022.08.07"]
[Round "9.68"]
[White "Saraci, Rinesa"]
[Black "Nema, Rabab Ahmed"]
[Result "1-0"]
[WhiteElo "1494"]
[BlackElo "1172"]
[Annotator "NA RC"]
[PlyCount "42"]
[EventDate "2022.??.??"]
[TimeControl "60"]

1. e4 {[%emt 0:00:07]} e6 {[%emt 0:00:04]} 2. d4 {[%emt 0:00:18]} d5 {[%emt 0:
00:00]} 3. exd5 {[%emt 0:01:46]} exd5 {[%emt 0:00:02]} 4. Nf3 {[%emt 0:00:46]}
Nf6 {[%emt 0:00:17]} 5. Be2 {[%emt 0:02:59]} Bd6 {[%emt 0:00:22]} 6. h3 {
[%emt 0:01:14]} O-O {[%emt 0:00:45]} 7. O-O {[%emt 0:00:36]} Bf5 {[%emt 0:00:
00]} 8. Nc3 {[%emt 0:01:51]} c6 {[%emt 0:00:40]} 9. Re1 {[%emt 0:02:19]} Nbd7 {
[%emt 0:01:39]} 10. Bd3 {[%emt 0:08:32]} Bxd3 {[%emt 0:00:55]} 11. Qxd3 {
[%emt 0:00:45]} Qc7 {[%emt 0:02:27]} 12. Bd2 {[%emt 0:05:37]} Rfe8 {[%emt 0:00:
00]} 13. Rad1 {[%emt 0:06:13]} h6 {[%emt 0:11:21]} 14. Bc1 {[%emt 0:11:31]} b5
{[%emt 0:09:13]} 15. a3 {[%emt 0:04:08]} a5 {[%emt 0:06:15]} 16. b3 {[%emt 0:
00:00]} Rxe1+ {[%emt 0:06:37]} 17. Rxe1 {[%emt 0:00:49]} Re8 {[%emt 0:00:04]}
18. Rxe8+ {[%emt 0:05:31]} Nxe8 {[%emt 0:00:02]} 19. a4 {[%emt 0:01:37]} b4 {
[%emt 0:03:36]} 20. Nd1 {[%emt 0:05:03]} Qb6 {[%emt 0:04:21]} 21. Qf5 {[%emt 0:
00:00]} Nef6 {[%emt 0:04:17]} 1-0

[Event "44th Chess Olympiad Women 2022"]
[Site "Chennai"]
[Date "2022.08.07"]
[Round "9.68"]
[White "Sharku, Enesa"]
[Black "Alhasan, Zainah"]
[Result "1-0"]
[WhiteElo "1094"]
[BlackElo "1095"]
[Annotator "NA RC"]
[PlyCount "99"]
[EventDate "2022.??.??"]
[TimeControl "60"]

1. e4 {[%emt 0:00:03]} e5 {[%emt 0:00:05]} 2. Nf3 {[%emt 0:00:09]} Nc6 {
[%emt 0:00:09]} 3. d4 {[%emt 0:00:22]} f6 {[%emt 0:00:45]} 4. d5 {[%emt 0:00:
00]} Nb8 {[%emt 0:01:31]} 5. Bc4 {[%emt 0:08:05]} c6 {[%emt 0:03:32]} 6. Nc3 {
[%emt 0:04:01]} d6 {[%emt 0:05:17]} 7. h3 {[%emt 0:01:14]} c5 {[%emt 0:06:10]}
8. O-O {[%emt 0:01:21]} a6 {[%emt 0:02:54]} 9. a3 {[%emt 0:02:07]} Be7 {
[%emt 0:02:21]} 10. Be3 {[%emt 0:03:30]} f5 {[%emt 0:03:24]} 11. exf5 {[%emt 0:
00:00]} Bxf5 {[%emt 0:00:59]} 12. Bd3 {[%emt 0:01:58]} Bxd3 {[%emt 0:01:29]}
13. Qxd3 {[%emt 0:00:09]} Nf6 {[%emt 0:01:18]} 14. Rad1 {[%emt 0:01:59]} O-O {
[%emt 0:00:39]} 15. Ng5 {[%emt 0:04:34]} h6 {[%emt 0:05:10]} 16. Ne6 {[%emt 0:
00:00]} Qb6 {[%emt 0:01:55]} 17. Nxf8 {[%emt 0:01:31]} Bxf8 {[%emt 0:00:29]}
18. b4 {[%emt 0:00:28]} Qc7 {[%emt 0:02:22]} 19. f4 {[%emt 0:02:24]} Nbd7 {
[%emt 0:03:03]} 20. Rf3 {[%emt 0:03:15]} Re8 {[%emt 0:01:26]} 21. Ne4 {[%emt 0:
00:00]} Nxe4 {[%emt 0:00:40]} 22. Qxe4 {[%emt 0:00:15]} Nf6 {[%emt 0:01:50]}
23. Qg6 {[%emt 0:01:24]} Qf7 {[%emt 0:03:01]} 24. Qxf7+ {[%emt 0:00:49]} Kxf7 {
[%emt 0:00:21]} 25. c4 {[%emt 0:01:09]} e4 {[%emt 0:02:05]} 26. Rf2 {[%emt 0:
00:00]} b6 {[%emt 0:01:11]} 27. Rb1 {[%emt 0:01:14]} Nd7 {[%emt 0:02:03]} 28.
a4 {[%emt 0:05:11]} Rc8 {[%emt 0:02:43]} 29. g4 {[%emt 0:07:05]} Kg8 {[%emt 0:
00:00]} 30. h4 {[%emt 0:03:39]} Be7 {[%emt 0:02:31]} 31. g5 {[%emt 0:00:56]} h5
{[%emt 0:01:55]} 32. Re2 {[%emt 0:01:31]} Re8 {[%emt 0:02:16]} 33. Kf1 {
[%emt 0:03:37]} Bd8 {[%emt 0:01:55]} 34. Ra2 {[%emt 0:03:19]} Bc7 {[%emt 0:00:
00]} 35. Ke2 {[%emt 0:02:18]} Bb8 {[%emt 0:01:56]} 36. a5 {[%emt 0:02:53]} b5 {
[%emt 0:02:22]} 37. cxb5 {[%emt 0:00:41]} axb5 {[%emt 0:01:18]} 38. bxc5 {
[%emt 0:00:07]} Nxc5 {[%emt 0:00:38]} 39. Bxc5 {[%emt 0:01:29]} dxc5 {[%emt 0:
00:00]} 40. Rxb5 {[%emt 0:00:06]} Bxf4 {[%emt 0:00:36]} 41. Rxc5 {[%emt 0:00:
00]} Rf8 {[%emt 0:30:51]} 42. Ra1 {[%emt 0:02:14]} Bg3 {[%emt 0:00:51]} 43. Rf1
{[%emt 0:00:54]} Rb8 {[%emt 0:00:30]} 44. g6 {[%emt 0:01:01]} Bxh4 {[%emt 0:00:
00]} 45. a6 {[%emt 0:00:15]} Bg5 {[%emt 0:00:23]} 46. Rb1 {[%emt 0:00:33]} Rf8
{[%emt 0:00:52]} 47. a7 {[%emt 0:00:40]} Ra8 {[%emt 0:00:13]} 48. Rb8+ {
[%emt 0:00:23]} Rxb8 {[%emt 0:00:04]} 49. axb8=Q+ {[%emt 0:00:19]} Bd8 {
[%emt 0:00:52]} 50. Qxd8# {[%emt 0:00:19]} 1-0